bitfinex-derivatives/quotes_SOLF0:USTF0_20240920
["timestamp","ask_amount","ask_price","bid_price","bid_amount"]
[1726816218278,3.313,150.91,150.87,3.3139]
[1726816218692,3.313,150.91,150.86,3.314]
[1726816219190,25.45,150.93,150.84,3.3145]
[1726816219391,25.45,150.93,150.82,6.06785233]
[1726816219787,25.45,150.9,150.83,3.3146]
[1726816220086,19.9,150.93,150.78,2.5571]
[1726816220388,3.315,150.82,150.78,2.5571]
[1726816220688,25.45,150.85,150.78,2.5571]
[1726816221680,3.3148,150.83,150.78,2.5571]
[1726816222085,3.3148,150.83,150.78,5.8729]
[1726816222380,33.4143,150.89,150.78,2.5571]
[1726816222585,33.4143,150.89,150.79,2.8041]
[1726816222785,2.7151,150.89,150.79,2.8041]
[1726816222986,2.7151,150.89,150.8,27.9907]
[1726816223485,3.24869057,150.91,150.79,2.8041]
[1726816223690,3.3144,150.85,150.8,3.3153]
[1726816223989,25.45,150.87,150.79,2.8041]
[1726816224891,5.3711,150.89,150.72,2.5407]
[1726816224892,25.45,150.85,150.72,2.5407]
[1726816225089,25.45,150.85,150.73,5.1386]
[1726816225690,3.3146,150.84,150.78,3.3157]
[1726816225992,25.45,150.85,150.73,30.5886]
[1726816226194,25.45,150.85,150.73,5.1386]
[1726816227191,3.315,150.83,150.77,3.3159]
[1726816227690,3.315,150.83,150.78,3.3159]
[1726816227993,19.9,151.0,150.8,25.45]
[1726816228190,25.45,150.95,150.81,2.62]
[1726816228391,25.45,150.95,150.81,6.01491057]
[1726816228591,25.45,150.95,150.86,3.3141]
[1726816228795,3.29806474,150.96,150.77,25.45]
[1726816228796,25.45,150.9,150.77,25.45]
[1726816228995,25.45,150.9,150.78,2.62]
[1726816229192,25.45,150.9,150.82,3.3149]
[1726816229896,25.45,150.9,150.78,2.62]
[1726816229897,25.45,150.87,150.78,2.62]
[1726816230297,28.7639,150.87,150.81,3.3152]
[1726816230495,28.7639,150.87,150.78,2.62]
[1726816230796,25.45,150.87,150.78,2.62]
[1726816231893,25.45,150.85,150.78,2.62]
[1726816232097,25.45,150.85,150.76,132.62]
[1726816232797,3.3148,150.83,150.78,3.3158]
[1726816232998,25.45,150.85,150.76,132.62]
[1726816233201,25.45,150.87,150.76,132.62]
[1726816233793,3.3141,150.87,150.77,25.45]
[1726816234493,3.3141,150.86,150.77,25.45]
[1726816235003,3.3144,150.85,150.8,3.3153]
[1726816236599,25.45,150.87,150.76,132.62]
[1726816237197,3.3143,150.86,150.8,3.3153]
[1726816237402,25.45,150.87,150.8,3.3153]
[1726816237896,3.3143,150.86,150.8,3.3153]
[1726816238306,3.3146,150.84,150.79,3.3156]
[1726816238503,25.45,150.81,150.66,25.45]
[1726816238804,2.7835,150.8,150.67,2.7769]
[1726816239011,3.316,150.78,150.72,3.3171]
[1726816239611,3.3161,150.77,150.72,3.3171]
[1726816240114,5.3369,150.8,150.73,3.3168]
[1726816240604,5.3369,150.8,150.69,25.45]
[1726816240810,2.7835,150.8,150.69,25.45]
[1726816241612,6.0991,150.8,150.74,3.3167]
[1726816242011,28.2335,150.8,150.69,25.45]
[1726816242204,3.3162,150.77,150.71,3.3174]
[1726816242407,3.3162,150.77,150.68,132.64]
[1726816242408,25.45,150.78,150.68,132.64]
[1726816242916,25.45,150.78,150.7,3.3176]
[1726816243313,25.45,150.78,150.68,132.64]
[1726816243617,2.7425,150.77,150.68,132.64]
[1726816243813,6.0586,150.77,150.71,3.3173]
[1726816244007,28.2335,150.8,150.69,25.45]
[1726816244206,2.7835,150.8,150.69,25.45]
[1726816244517,3.3157,150.79,150.69,25.45]
[1726816245307,3.3157,150.79,150.74,3.3167]
[1726816246117,2.7425,150.82,150.75,3.3164]
[1726816246709,3.3157,150.79,150.74,3.3168]
[1726816246910,2.7425,150.82,150.73,2.6982]
[1726816247115,2.7039,150.83,150.73,2.6982]
[1726816247314,3.3154,150.81,150.75,3.3164]
[1726816247717,2.6788,150.91,150.79,25.45]
[1726816247718,28.1288,150.91,150.79,25.45]
[1726816248028,2.6144,150.9,150.79,25.45]
[1726816248222,2.6144,150.9,150.8,135.3327]
[1726816248521,2.6144,150.9,150.84,3.3144]
[1726816248522,5.9278,150.9,150.84,3.3144]
[1726816248827,2.6144,150.9,150.82,25.45]
[1726816249023,2.6144,150.9,150.81,5.309]
[1726816249418,3.3135,150.89,150.83,3.3147]
[1726816250026,3.3137,150.88,150.82,3.315]
[1726816250226,2.6144,150.9,150.81,5.309]
[1726816251625,3.3141,150.87,150.81,2.5715]
[1726816251823,25.45,150.88,150.79,132.66]
[1726816252229,25.45,150.88,150.8,3.3153]
[1726816252230,3.3141,150.86,150.8,3.3153]
[1726816252729,2.6968,150.89,150.79,132.66]
[1726816253328,3.3143,150.86,150.79,132.66]
[1726816253933,3.3139,150.87,150.81,3.3152]
[1726816254136,2.6968,150.89,150.79,132.66]
[1726816254329,2.6144,150.9,150.79,158.11]
[1726816254728,3.3135,150.89,150.83,3.3146]
[1726816254932,3.3135,150.89,150.79,158.11]
[1726816255935,5.9277,150.9,150.84,3.3145]
[1726816256337,2.6144,150.9,150.82,3.3149]
[1726816256639,2.6144,150.9,150.79,25.45]
[1726816257033,3.3136,150.89,150.79,25.45]
[1726816257436,2.6144,150.9,150.82,3.3148]
[1726816258531,2.6144,150.9,150.78,132.64]
[1726816258733,30.7049,150.89,150.78,132.64]
[1726816259335,5.2549,150.89,150.78,132.64]
[1726816259737,3.3137,150.88,150.81,3.315]
[1726816259937,5.2549,150.89,150.81,3.315]
[1726816260336,5.2549,150.89,150.79,3.3154]
[1726816260536,25.45,150.88,150.78,132.64]
[1726816260840,25.45,150.86,150.78,132.64]
[1726816261042,3.3148,150.83,150.77,3.3159]
[1726816261341,5.2549,150.89,150.75,33.4014]
[1726816261536,25.45,150.87,150.77,3.3161]
[1726816262137,3.315,150.83,150.77,3.3161]
[1726816262337,3.315,150.83,150.78,3.3158]
[1726816262543,25.45,150.87,150.75,33.4014]
[1726816263038,30.7049,150.89,150.77,25.45]
[1726816263235,8.5684,150.89,150.79,25.45]
[1726816263433,5.2549,150.89,150.83,3.3146]
[1726816263840,3.3137,150.88,150.84,3.3146]
[1726816264149,5.2549,150.89,150.79,25.45]
[1726816264545,3.3137,150.88,150.83,3.3146]
[1726816265744,2.6144,150.9,150.81,25.45]
[1726816265942,25.45,150.93,150.82,7.9866]
[1726816266244,3.3132,150.91,150.86,3.314]
[1726816266942,8.1379,150.98,150.84,25.45]
[1726816266943,25.45,150.96,150.84,25.45]
[1726816267541,33.5879,150.98,150.88,3.3136]
[1726816267740,1.01977173,150.97,150.88,3.3136]
[1726816268145,3.3126,150.93,150.88,3.3136]
[1726816268843,3.3129,150.92,150.88,3.3136]
[1726816269741,25.45,150.95,150.84,25.45]
[1726816270450,3.3129,150.92,150.88,3.3135]
[1726816270849,25.45,150.95,150.84,25.45]
[1726816271053,3.3127,150.93,150.88,3.3135]
[1726816271250,25.45,150.95,150.88,3.3135]
[1726816271550,3.3124,150.94,150.9,3.3131]
[1726816271949,33.5879,150.98,150.9,3.3131]
[1726816272155,33.5879,150.98,150.91,3.313]
[1726816272650,33.5879,150.98,150.92,3.3128]
[1726816272851,33.5879,150.98,150.86,25.45]
[1726816273252,8.1379,150.98,150.89,25.45]
[1726816273547,3.3112,151.0,150.92,25.45]
[1726816273754,2.7289,151.04,150.92,25.45]
[1726816273946,5.371,151.04,150.93,2.7726]
[1726816274147,3.3109,151.01,150.93,2.7726]
[1726816274347,5.371,151.04,150.93,2.7726]
[1726816274555,5.371,151.04,150.94,25.45]
[1726816274950,2.6421,151.04,150.94,25.45]
[1726816275152,25.45,151.08,150.96,25.45]
[1726816275359,3.30683098,151.09,150.98,3.3113]
[1726816275553,25.45,151.1,150.97,2.5699]
[1726816275752,3.3104,151.04,150.97,2.5699]
[1726816276254,2.7534,151.08,150.97,2.5699]
[1726816276650,25.45,151.12,151.02,3.3105]
[1726816276961,3.3095,151.07,150.99,25.45]
[1726816277654,3.3095,151.07,151.01,3.3108]
[1726816277858,3.3095,151.07,150.99,25.45]
[1726816278049,3.3098,151.06,150.99,25.45]
[1726816278858,3.3098,151.06,151.0,3.311]
[1726816279361,3.3098,151.06,150.99,25.45]
[1726816279566,3.3096,151.07,150.99,25.45]
[1726816279765,25.45,151.12,151.01,25.45]
[1726816280158,3.3095,151.08,151.02,3.3104]
[1726816281565,25.45,151.11,150.99,25.45]
[1726816282062,25.45,151.08,150.98,2.6428]
[1726816282655,3.3099,151.05,151.0,3.311]
[1726816283059,25.45,151.1,150.98,2.6428]
[1726816284160,25.45,151.1,150.98,135.1428]
[1726816285063,2.7534,151.13,150.98,135.1428]
[1726816285259,25.45,151.07,150.98,135.1428]
[1726816285863,3.3103,151.04,150.99,3.3111]
[1726816286256,25.45,151.07,150.98,135.1428]
[1726816286458,25.45,151.1,150.98,135.1428]
[1726816286868,3.3099,151.06,151.01,3.3107]
[1726816287467,3.31,151.05,151.01,3.3107]
[1726816287764,25.45,151.08,150.98,135.1428]
[1726816287963,25.45,151.06,150.98,132.5]
[1726816288160,3.311,151.01,150.98,132.5]
[1726816288360,2.6241,151.05,150.98,132.5]
[1726816288560,3.3109,151.01,150.98,132.5]
[1726816288866,25.45,151.03,150.98,132.5]
[1726816289068,25.45,151.03,150.97,2.5699]
[1726816289467,25.45,151.03,150.94,2.6013]
[1726816289869,2.6241,151.05,150.94,2.6013]
[1726816290067,25.45,151.03,150.94,2.6013]
[1726816290264,3.3112,151.0,150.94,2.6013]
[1726816290466,28.0741,151.05,150.94,2.6013]
[1726816290980,25.45,151.05,150.94,28.0513]
[1726816291378,3.3107,151.02,150.94,28.0513]
[1726816291577,25.45,151.05,150.94,28.0513]
[1726816291879,25.45,151.05,150.94,2.6013]
[1726816292782,3.3111,151.0,150.96,3.3119]
[1726816292980,25.45,151.03,150.94,2.6013]
[1726816293179,25.45,151.03,150.93,2.7726]
[1726816293478,3.311,151.0,150.95,3.3121]
[1726816293982,2.6984,151.06,150.92,2.5709]
[1726816294182,3.3114,150.99,150.94,3.3122]
[1726816294383,25.45,151.01,150.94,3.3122]
[1726816294581,3.3113,150.99,150.94,3.3122]
[1726816295283,25.45,151.01,150.92,2.5709]
[1726816295284,3.3109,151.01,150.92,28.0209]
[1726816295484,25.45,151.05,150.94,25.45]
[1726816295884,3.3106,151.03,150.97,3.3116]
[1726816296288,25.45,151.05,150.97,3.3116]
[1726816297289,25.45,151.03,150.92,28.0209]
[1726816297486,2.6984,151.06,150.92,28.0209]
[1726816297683,25.45,151.02,150.92,28.0209]
[1726816298087,3.3114,150.99,150.92,28.0209]
[1726816298487,3.3114,150.99,150.94,3.3123]
[1726816299389,3.3111,151.0,150.95,3.3121]
[1726816300090,25.45,151.05,150.92,28.0209]
[1726816300487,25.45,151.05,150.94,25.45]
[1726816300689,2.6984,151.06,150.94,25.45]
[1726816301389,3.3105,151.03,150.98,3.3113]
[1726816301582,2.6984,151.06,150.94,25.45]
[1726816301782,2.6984,151.06,150.96,3.3118]
[1726816301985,2.6984,151.06,150.92,28.0209]
[1726816302194,25.45,151.04,150.92,28.0209]
[1726816302690,3.3112,151.0,150.95,3.3121]
[1726816303388,3.3109,151.01,150.96,3.3119]
[1726816303587,25.45,151.04,150.92,160.5209]
[1726816303788,2.6984,151.06,150.92,160.5209]
[1726816304289,3.3108,151.02,150.96,3.3117]
[1726816304594,3.3108,151.02,150.92,160.5209]
[1726816305188,3.3108,151.02,150.96,3.3117]
[1726816305691,3.3108,151.02,150.97,3.3116]
[1726816307389,3.3105,151.03,150.98,3.3114]
[1726816307592,2.6984,151.06,150.92,160.5209]
[1726816307893,25.45,151.04,150.92,160.5209]
[1726816308095,3.311,151.01,150.96,3.3118]
[1726816308394,25.45,151.04,150.92,160.5209]
[1726816308583,3.3112,151.0,150.95,3.312]
[1726816310493,3.3109,151.01,150.96,3.3119]
[1726816310796,25.45,151.04,150.92,160.5209]
[1726816311990,3.3109,151.01,150.96,3.3119]
[1726816312197,2.7521,151.07,150.97,25.45]
[1726816312387,2.7521,151.07,150.98,5.4621]
[1726816312595,2.7521,151.07,150.99,3.3816932]
[1726816312888,2.7521,151.07,151.01,3.3107]
[1726816313599,6.0618,151.07,151.01,3.3107]
[1726816313997,6.0618,151.07,151.02,3.3106]
[1726816314198,3.3097,151.06,150.99,2.7067]
[1726816314392,3.3097,151.06,150.99,5.96850541]
[1726816314893,2.7521,151.07,150.99,3.26180541]
[1726816315095,2.7521,151.07,150.98,135.2374]
[1726816315591,3.3099,151.06,150.98,138.48364147]
[1726816315996,3.3099,151.06,151.0,3.3109]
[1726816317092,3.3099,151.06,151.01,3.3108]
[1726816317895,2.7521,151.07,150.98,132.48]
[1726816318095,30.5773,151.06,150.98,132.48]
[1726816318496,3.3105,151.03,150.98,135.7915]
[1726816319500,3.31,151.05,150.98,132.48]
[1726816319900,5.1273,151.06,150.98,132.48]
[1726816320101,5.1273,151.06,150.99,3.3111]
[1726816320697,3.3103,151.04,150.99,3.3111]
[1726816321298,3.3104,151.03,150.98,135.7913]
[1726816321593,3.3104,151.03,150.98,132.48]
[1726816322195,3.3104,151.03,150.98,135.7914]
[1726816322794,3.311,151.0,150.98,132.48]
[1726816323100,25.45,151.0,150.93,2.7671]
[1726816323301,25.45,151.0,150.9,346.37562106]
[1726816323604,3.3116,150.98,150.9,3.37562106]
[1726816324103,3.3118,150.97,150.9,3.37562106]
[1726816324290,25.45,151.0,150.89,132.48]
[1726816324291,2.6817,150.99,150.89,132.48]
[1726816324499,25.45,150.97,150.89,135.7935]
[1726816324699,3.3125,150.94,150.89,135.7935]
[1726816324900,25.45,150.97,150.89,135.7935]
[1726816325096,25.45,150.97,150.89,132.48]
[1726816326306,28.7617,150.97,150.89,132.48]
[1726816326703,28.7617,150.97,150.92,3.3126]
[1726816326900,3.3117,150.97,150.92,3.3126]
[1726816327798,5.1166,150.98,150.89,132.48]
[1726816327995,28.1317,150.99,150.89,157.93]
[1726816328303,2.6817,150.99,150.89,157.93]
[1726816328500,25.45,151.02,150.89,157.93]
[1726816328803,25.45,151.02,150.92,25.45]
[1726816329402,3.3109,151.01,150.92,25.45]
[1726816330706,3.3109,151.01,150.96,3.3118]
[1726816330906,2.7243,151.06,150.94,25.45]
[1726816331104,2.7243,151.06,150.95,2.7718]
[1726816331406,2.7243,151.06,150.96,3.29987411]
[1726816331794,2.7243,151.06,150.95,8.0766]
[1726816331999,6.6132,151.21,150.99,25.45]
[1726816332202,5.4115,151.14,150.99,28.6872623]
[1726816332404,29.73691362,151.13,150.99,28.6872623]
[1726816332605,28.71840257,151.13,150.99,28.6872623]
[1726816332802,3.3084,151.12,151.06,3.3096]
[1726816333001,5.4115,151.14,151.01,157.95]
[1726816333310,5.4115,151.14,151.04,25.45]
[1726816333604,5.4115,151.14,151.07,3.3093]
[1726816333605,3.3082,151.13,151.07,3.3093]
[1726816334205,5.4115,151.14,151.04,25.45]
[1726816334404,25.45,151.13,151.02,7.9466]
[1726816334703,3.3088,151.11,151.02,7.9466]
[1726816334902,25.45,151.13,151.05,3.3099]
[1726816335605,25.45,151.13,151.02,33.3966]
[1726816335802,3.3087,151.11,151.02,33.3966]
[1726816336004,3.3087,151.11,151.05,3.3098]
[1726816336307,3.3087,151.11,151.02,33.3966]
[1726816336508,5.4115,151.14,151.02,33.3966]
[1726816337107,5.4115,151.14,151.07,3.3094]
[1726816337800,5.4115,151.14,151.02,33.3966]
[1726816338209,25.45,151.1,151.01,132.5]
[1726816338597,3.3101,151.05,150.88,346.31765173]
[1726816338805,25.45,151.1,150.89,7.9598]
[1726816338806,25.45,151.02,150.89,7.9598]
[1726816338999,25.45,151.02,150.89,33.4098]
[1726816339203,25.45,151.02,150.94,3.3124]
[1726816340003,2.6055,151.04,150.94,25.45]
[1726816340204,2.7479,151.07,150.96,25.45]
[1726816340405,3.3099,151.06,150.99,3.3111]
[1726816340807,3.3099,151.06,150.97,5.262]
[1726816341009,6.0574,151.07,151.0,3.3109]
[1726816341405,2.7479,151.07,150.97,5.262]
[1726816341808,3.3098,151.06,150.99,3.3111]
[1726816342912,3.3098,151.06,151.0,3.311]
[1726816345109,3.3095,151.07,151.01,3.3108]
[1726816345306,3.3095,151.07,150.97,5.262]
[1726816345609,2.6382,151.15,150.99,25.45]
[1726816345809,25.45,151.12,150.99,25.45]
[1726816346016,3.3089,151.1,150.99,25.45]
[1726816346215,25.45,151.12,151.01,25.45]
[1726816346706,3.3088,151.11,151.01,25.45]
[1726816346909,5.4741,151.14,151.03,25.45]
[1726816347213,5.4741,151.14,150.97,348.262]
[1726816347214,3.309,151.1,151.04,11.6858]
[1726816347412,3.309,151.1,151.04,8.3758]
[1726816348010,3.309,151.1,151.04,11.6859]
[1726816348214,25.45,151.12,151.04,8.3758]
[1726816348518,5.4741,151.14,151.04,11.70935406]
[1726816348716,3.3082,151.13,151.04,11.70935406]
[1726816348914,2.7882,151.14,151.07,3.3093]
[1726816349112,2.7882,151.14,151.04,11.70935406]
[1726816349416,2.7882,151.14,151.04,144.16935406]
[1726816349616,3.3086,151.12,151.06,3.3097]
[1726816350408,3.3082,151.13,151.04,144.16935406]
[1726816350913,3.3078,151.15,151.06,25.45]
[1726816351215,25.45,151.26,151.11,25.45]
[1726816351415,25.45,151.26,151.12,8.0502]
[1726816351814,3.3062,151.23,151.17,3.3071]
[1726816352015,28.2198,151.27,151.16,132.44]
[1726816353009,25.45,151.25,151.16,132.44]
[1726816353414,3.3064,151.22,151.16,132.44]
[1726816353912,25.45,151.25,151.16,132.44]
[1726816354117,3.3063,151.22,151.16,135.7475]
[1726816355219,3.3061,151.23,151.17,3.3072]
[1726816355813,3.3062,151.22,151.16,135.7475]
[1726816356015,3.3062,151.22,151.16,132.44]
[1726816356419,3.3065,151.21,151.16,132.44]
[1726816356717,25.45,151.26,151.16,132.44]
[1726816357320,3.3065,151.21,151.16,132.44]
[1726816358418,3.3065,151.21,151.16,135.7475]
[1726816358618,25.45,151.26,151.16,157.89]
[1726816358920,25.45,151.26,151.17,3.3073]
[1726816359311,3.3062,151.23,151.17,3.3073]
[1726816359512,3.3062,151.23,151.18,3.3071]
[1726816361122,3.3062,151.23,151.17,3.3073]
[1726816361310,3.3062,151.22,151.17,3.3073]
[1726816361516,3.3062,151.22,151.17,135.6673]
[1726816361815,30.6319,151.27,151.17,132.36]
[1726816362419,3.3064,151.22,151.17,132.36]
[1726816362615,30.6319,151.27,151.17,132.36]
[1726816363212,6.6068,151.36,151.17,132.36]
[1726816363524,25.45,151.29,151.17,132.36]
[1726816363721,25.45,151.29,151.2,3.3065]
[1726816363921,3.3058,151.24,151.17,132.36]
[1726816364918,3.306,151.23,151.17,132.36]
[1726816365428,3.306,151.23,151.18,3.307]
[1726816366317,3.306,151.23,151.18,135.647]
[1726816367228,3.3059,151.24,151.19,3.3068]
[1726816368121,3.3061,151.23,151.18,135.6471]
[1726816368318,30.0298,151.28,151.18,132.34]
[1726816368520,30.0298,151.28,151.19,4.64]
[1726816368723,3.3056,151.25,151.2,3.3065]
[1726816369626,30.0298,151.28,151.19,7.9468]
[1726816369827,30.0298,151.28,151.19,4.64]
[1726816370935,30.0298,151.28,151.2,3.3066]
[1726816371527,4.5798,151.28,151.2,3.3066]
[1726816371734,30.0298,151.28,151.2,3.3066]
[1726816371930,30.0298,151.28,151.19,7.9468]
[1726816372434,3.3061,151.23,151.19,7.9468]
[1726816373636,3.3063,151.22,151.19,4.64]
[1726816373833,2.3083,151.27,151.18,132.34]
[1726816374034,15.88,151.24,151.18,132.34]
[1726816374629,3.3065,151.21,151.18,135.647]
[1726816375330,15.88,151.24,151.18,132.34]
[1726816375638,15.88,151.24,151.15,15.88]
[1726816377846,3.3063,151.22,151.18,3.3071]
[1726816378540,15.88,151.24,151.17,15.88]
[1726816378742,3.3061,151.23,151.17,15.88]
[1726816379441,3.3061,151.23,151.19,3.3067]
[1726816380340,3.3059,151.24,151.2,3.3066]
[1726816380544,3.3059,151.24,151.18,15.88]
[1726816380753,3.3056,151.25,151.18,15.88]
[1726816381045,20.4598,151.28,151.2,15.88]
[1726816381241,4.5798,151.28,151.2,15.88]
[1726816381444,3.3054,151.26,151.21,3.38030964]
[1726816381645,20.4598,151.28,151.2,15.88]
[1726816381842,3.3062,151.23,151.18,15.88]
[1726816382145,3.3062,151.23,151.17,15.88]
[1726816383045,3.3062,151.23,151.19,3.3067]
[1726816383847,3.3059,151.24,151.17,15.88]
[1726816384450,3.3059,151.24,151.2,3.3066]
[1726816384948,3.3059,151.24,151.19,3.3068]
[1726816385146,20.4598,151.28,151.19,15.88]
[1726816385549,20.4598,151.28,151.21,15.88]
[1726816385843,3.3055,151.26,151.21,15.88]
[1726816386049,20.4598,151.28,151.21,19.1864]
[1726816386446,20.4598,151.28,151.21,3.3064]
[1726816386749,15.88,151.26,151.19,15.88]
[1726816387252,15.88,151.26,151.17,132.32]
[1726816387846,15.88,151.25,151.17,132.32]
[1726816388351,3.3066,151.21,151.17,135.6272]
[1726816388649,15.88,151.25,151.17,132.32]
[1726816388851,2.4789,151.27,151.19,15.88]
[1726816389052,3.3057,151.25,151.21,3.3063]
[1726816389242,2.4789,151.27,151.19,15.88]
[1726816389443,3.3054,151.26,151.22,3.3061]
[1726816389744,3.3054,151.26,151.17,132.32]
[1726816389745,3.3054,151.26,151.21,15.88]
[1726816390150,3.3054,151.26,151.22,3.3061]
[1726816391647,3.3054,151.26,151.21,19.1864]
[1726816393654,3.3056,151.25,151.21,19.1864]
[1726816393954,4.5798,151.28,151.21,15.88]
[1726816394153,2.2641,151.28,151.23,15.88]
[1726816394354,2.2641,151.28,151.21,15.88]
[1726816394651,2.2641,151.28,151.21,19.1863]
[1726816394856,3.3054,151.26,151.21,19.1863]
[1726816395060,3.3054,151.26,151.21,22.44235748]
[1726816396954,2.2641,151.28,151.21,15.88]
[1726816397357,2.2641,151.28,151.19,18.3031]
[1726816397553,3.3059,151.24,151.19,21.6098]
[1726816397854,20.4239,151.28,151.2,3.35791262]
[1726816398052,20.4239,151.28,151.19,18.3031]
[1726816398754,3.306,151.24,151.19,21.6098]
[1726816399952,15.88,151.25,151.18,132.32]
[1726816400156,4.5439,151.28,151.18,132.32]
[1726816400157,2.4571,151.27,151.18,132.32]
[1726816400460,15.88,151.22,151.18,132.32]
[1726816401048,3.3069,151.19,151.18,132.32]
[1726816401254,15.88,151.2,151.13,2.3014]
[1726816401451,15.88,151.2,151.11,15.88]
[1726816402057,3.3077,151.16,151.11,19.1884]
[1726816402257,3.3077,151.16,151.11,15.88]
[1726816402558,15.88,151.2,151.11,15.88]
[1726816402753,15.88,151.24,151.15,15.88]
[1726816402951,15.88,151.24,151.15,19.15069784]
[1726816403356,18.1773,151.26,151.17,15.88]
[1726816403751,18.1773,151.26,151.17,18.3605]
[1726816403952,15.88,151.24,151.17,2.4805]
[1726816405160,3.3066,151.21,151.17,5.7878]
[1726816407162,15.88,151.24,151.17,2.4805]
[1726816408466,3.3066,151.21,151.17,5.7878]
[1726816408666,15.88,151.24,151.17,5.7878]
[1726816408870,15.88,151.24,151.13,2.3828]
[1726816408871,15.88,151.18,151.0,572.0]
[1726816409072,15.88,151.16,151.05,15.88]
[1726816410565,3.3086,151.12,151.05,15.88]
[1726816411464,3.3087,151.11,151.06,3.3096]
[1726816411953,15.88,151.12,151.04,15.88]
[1726816412158,15.88,151.12,151.02,15.88]
[1726816413369,3.3092,151.09,151.02,15.88]
[1726816413665,7.1808,151.17,151.02,15.88]
[1726816413869,3.3092,151.09,151.03,3.3104]
[1726816414757,15.88,151.09,151.01,4.7394]
[1726816414964,3.3106,151.02,151.01,4.7394]
[1726816415158,2.298,151.1,151.01,4.7394]
[1726816415360,3.3099,151.06,151.01,4.7394]
[1726816415960,15.88,151.06,150.97,475.32]
[1726816416160,15.88,151.06,150.97,478.59970113]
[1726816416358,15.88,151.04,150.97,475.32]
[1726816416864,15.88,151.01,150.97,132.32]
[1726816417466,4.905,151.09,150.97,132.32]
[1726816417670,15.88,151.03,150.97,132.32]
[1726816417969,25.44,151.05,150.97,132.32]
[1726816418867,4.905,151.09,150.97,132.32]
[1726816419068,25.44,151.07,150.97,132.32]
[1726816419374,25.44,151.07,150.99,3.3111]
[1726816419569,25.44,151.07,150.97,132.32]
[1726816419873,25.44,151.07,150.99,3.3112]
[1726816420177,3.3104,151.03,150.98,3.3115]
[1726816421273,25.44,151.06,150.97,132.32]
[1726816421573,25.44,151.04,150.97,132.32]
[1726816421771,3.3106,151.02,150.97,135.6317]
[1726816421964,25.44,151.01,150.9,482.8992]
[1726816422162,27.7309,151.01,150.9,139.8992]
[1726816422666,3.3111,151.0,150.9,165.3392]
[1726816423772,2.2909,151.01,150.96,3.3119]
[1726816424768,5.6017,151.01,150.95,3.3121]
[1726816425774,5.6017,151.01,150.96,3.3119]
[1726816426071,3.3111,151.0,150.92,25.44]
[1726816426376,2.2909,151.01,150.95,3.312]
[1726816426771,2.2909,151.01,150.93,3.35100009]
[1726816426969,25.44,151.04,150.96,3.3119]
[1726816427574,3.311,151.01,150.96,3.3119]
[1726816428368,25.44,151.04,150.93,3.2595786]
[1726816428574,25.44,150.99,150.91,132.46]